bitfinex/quotes_ETHUSD_20250319
["timestamp","ask_amount","ask_price","bid_price","bid_amount"]
[1742390115772,4.95368,2018.7,2018.6,3.0]
[1742390115975,9.562164,2018.8,2018.6,3.0]
[1742390116398,9.562234,2018.8,2018.6,3.0]
[1742390116595,9.562234,2018.8,2018.1,3.0]
[1742390116596,4.95431,2018.5,2018.1,3.0]
[1742390116804,0.55,2018.7,2018.2,5.711]
[1742390117106,9.563154,2018.4,2018.2,5.711]
[1742390117419,4.95466,2018.3,2018.2,5.711]
[1742390117589,4.95506,2018.2,2017.7,4.956]
[1742390117905,4.95506,2018.2,2017.8,10.67089]
[1742390117906,4.608684,2017.9,2017.8,10.67089]
[1742390118416,4.608684,2017.9,2017.8,13.67089]
[1742390118587,4.608684,2017.9,2017.8,8.715]
[1742390118783,4.608684,2018.3,2018.2,4.95491]
[1742390118990,1.0312434,2018.8,2018.4,4.95438]
[1742390118991,4.608684,2018.5,2018.4,4.95438]
[1742390119313,4.608684,2018.5,2018.4,3.0]
[1742390119846,4.608684,2018.8,2018.7,3.0]
[1742390119980,4.608684,2018.9,2018.8,3.0]
[1742390120185,4.608684,2019.1,2018.9,7.95302]
[1742390120384,4.608684,2019.1,2018.9,3.0]
[1742390120589,9.561504,2019.1,2018.9,3.0]
[1742390120892,4.608684,2019.1,2018.9,3.0]
[1742390121123,4.95285,2019.1,2018.9,3.0]
[1742390121522,9.73338592,2019.2,2018.9,3.0]
[1742390121835,4.95214,2019.4,2018.9,4.95303]
[1742390121984,10.55243592,2019.5,2019.1,7.95258]
[1742390122188,4.78091592,2019.5,2019.3,3.0]
[1742390122414,0.7617,2019.8,2019.3,3.0]
[1742390122415,5.54261592,2019.8,2019.3,3.0]
[1742390122597,9.73285592,2019.5,2019.3,3.0]
[1742390122815,4.78091592,2019.5,2019.3,3.0]
[1742390122987,9.73273592,2019.5,2019.3,3.0]
[1742390123184,4.78091592,2019.5,2019.3,7.95211]
[1742390123424,4.78091592,2019.5,2019.3,3.0]
[1742390123616,4.78091592,2019.5,2019.3,7.95204]
[1742390123817,14.68300592,2019.8,2019.4,4.95183]
[1742390124126,4.95138,2019.7,2019.3,3.0]
[1742390124430,9.73266592,2019.5,2019.3,3.0]
[1742390124612,9.73275592,2019.5,2019.3,3.0]
[1742390124811,4.95196,2019.4,2019.3,3.0]
[1742390125002,10.52527592,2019.5,2019.3,3.0]
[1742390125404,5.57351592,2019.5,2019.3,3.0]
[1742390125636,4.95196,2019.4,2019.3,3.0]
[1742390126033,10.52531592,2019.5,2019.3,3.0]
[1742390126342,15.44875592,2019.8,2019.4,4.95176]
[1742390126639,4.78091592,2020.1,2020.0,4.95049]
[1742390126805,4.78091592,2020.4,2020.2,7.94981]
[1742390127007,0.005,2020.6,2020.2,3.0]
[1742390127207,0.005,2020.6,2020.1,4.95013]
[1742390127208,4.78091592,2020.4,2019.9,3.0]
[1742390127418,4.95088,2019.9,2019.8,3.0]
[1742390127636,4.95143,2019.7,2019.4,3.0]
[1742390127813,9.9028,2019.7,2019.6,3.0]
[1742390128132,4.9514,2019.7,2019.6,3.0]
[1742390128434,4.95123,2019.7,2019.2,0.97083812]
[1742390128636,4.78091592,2019.8,2019.4,4.95178]
[1742390128840,4.9511,2019.8,2019.5,3.0]
[1742390129135,4.95172,2019.5,2019.4,3.0]
[1742390129432,4.95258,2019.2,2018.8,0.3765547]
[1742390129632,4.95198,2019.4,2018.9,5.71]
[1742390129837,4.95188,2019.5,2019.0,4.95279]
[1742390130134,9.73174592,2019.9,2019.5,4.95172]
[1742390130311,4.95083,2019.9,2019.6,8.717]
[1742390130511,9.73197592,2019.8,2019.7,8.718]
[1742390130940,12.32693751,2019.8,2019.7,5.718]
[1742390131147,4.95156,2019.6,2019.4,5.716]
[1742390131348,4.95156,2019.6,2019.5,3.0]
[1742390132151,4.95156,2019.6,2019.4,5.716]
[1742390132152,6.25222,2019.5,2019.4,5.716]
[1742390132530,0.7505,2019.5,2018.8,5.709]
[1742390132730,4.95302,2019.0,2018.8,5.709]
[1742390132931,4.78091592,2019.3,2018.9,3.0]
[1742390133261,9.73385592,2019.0,2018.9,3.0]
[1742390133556,4.95319,2018.9,2018.8,5.709]
[1742390134154,9.9057,2019.1,2018.8,5.709]
[1742390134455,4.95302,2019.0,2018.8,5.709]
[1742390134646,4.95319,2018.9,2018.8,8.709]
[1742390134843,4.95274,2019.1,2018.8,8.709]
[1742390135044,4.78091592,2019.3,2019.0,4.95282]
[1742390135271,4.95245,2019.2,2018.9,7.95317]
[1742390135440,4.95194,2019.5,2019.1,3.0]
[1742390135643,5.56581592,2019.6,2019.1,3.0]
[1742390135867,4.95183,2019.5,2019.3,3.0]
[1742390136071,5.50196,2019.4,2019.3,3.0]
[1742390136275,5.50221,2019.3,2017.4,4.78091592]
[1742390136488,0.55,2018.7,2018.4,4.95433]
[1742390136769,0.55,2018.9,2018.6,5.707]
[1742390136969,0.55,2018.7,2018.6,5.707]
[1742390137124,0.55,2018.7,2018.6,8.707]
[1742390137326,0.55,2018.7,2018.6,5.707]
[1742390137561,0.55,2018.9,2018.6,5.707]
[1742390137736,0.55,2019.0,2018.8,7.95343]
[1742390138057,4.95319,2018.9,2018.8,3.0]
[1742390138354,6.26779583,2018.9,2018.8,3.0]
[1742390138526,6.25699,2018.9,2018.8,3.0]
[1742390139222,6.25699,2018.9,2018.6,5.689]
[1742390139223,5.50344,2018.8,2018.6,5.689]
[1742390139428,4.95368,2018.7,2018.6,8.689]
[1742390139832,10.28455592,2018.8,2018.6,8.689]
[1742390139833,0.55,2018.8,2018.6,8.689]
[1742390140041,4.78091592,2019.4,2019.1,3.0]
[1742390140241,5.78183,2019.5,2019.1,7.95261]
[1742390140431,0.8301,2019.5,2019.1,3.0]
[1742390140627,4.95234,2019.3,2019.1,3.0]
[1742390140950,5.50245,2019.2,2019.1,3.0]
[1742390141156,5.5027,2019.1,2019.0,5.685]
[1742390141368,0.55,2018.8,2018.7,5.684]
[1742390141538,0.55,2018.8,2018.7,10.63768]
[1742390141731,0.8301,2019.5,2019.2,4.95223]
[1742390141952,0.8052,2019.8,2019.4,3.0]
[1742390142179,4.95159,2019.6,2019.4,3.0]
[1742390142370,4.95196,2019.4,2019.3,5.686]
[1742390142677,10.28287592,2019.4,2019.3,5.686]
[1742390143088,0.55,2019.3,2019.1,3.0]
[1742390143243,4.60249463,2019.2,2019.1,3.0]
[1742390143441,9.55494463,2019.2,2019.1,3.0]
[1742390143640,10.10494463,2019.2,2019.1,3.0]
[1742390143884,5.15249463,2019.2,2019.1,3.0]
[1742390144243,5.15249463,2019.2,2019.1,7.9527]
[1742390144658,4.60249463,2019.6,2019.4,3.0]
[1742390144856,5.70106,2019.9,2019.4,3.0]
[1742390144857,0.7503,2019.9,2019.6,4.95124]
[1742390145054,4.60249463,2020.0,2019.9,4.95074]
[1742390145276,4.60249463,2020.0,2019.9,13.64074]
[1742390145486,4.60249463,2020.2,2020.0,7.95045]
[1742390145657,4.60249463,2020.1,2020.0,7.95045]
[1742390145854,4.60249463,2020.3,2020.1,7.95011]
[1742390146070,4.60249463,2020.1,2020.0,7.95049]
[1742390146255,9.55273463,2020.1,2020.0,3.0]
[1742390146460,4.60249463,2020.1,2020.0,3.0]
[1742390147201,4.95116,2019.8,2019.4,4.95186]
[1742390147355,4.60249463,2019.5,2019.4,4.95186]
[1742390147683,4.60249463,2019.7,2019.6,4.95147]
[1742390147885,5.15249463,2019.7,2019.6,8.698]
[1742390148068,5.15249463,2019.7,2019.6,13.64947]
[1742390148274,5.15249463,2019.7,2019.6,8.698]
[1742390148496,10.10372463,2019.7,2019.6,8.698]
[1742390148699,5.15249463,2019.7,2019.6,13.64947]
[1742390149069,5.15249463,2019.8,2019.6,13.64935]
[1742390149279,5.15249463,2019.8,2019.6,13.64934]
[1742390149522,5.15249463,2019.8,2019.7,4.95123]
[1742390149816,5.15249463,2019.8,2019.6,13.64934]
[1742390149987,5.15249463,2019.8,2019.6,13.64932]
[1742390150192,5.15249463,2019.8,2019.7,4.95123]
[1742390150374,4.60249463,2020.0,2019.9,7.95061]
[1742390150787,4.60249463,2020.2,2020.1,3.0]
[1742390151081,9.72547556,2020.3,2020.1,8.685]
[1742390151313,0.55,2020.2,2020.1,8.685]
[1742390151819,0.55,2020.0,2019.3,17.119]
[1742390152022,4.95232,2019.3,2018.9,10.65008]
[1742390152189,4.77563556,2019.4,2019.2,3.0]
[1742390152381,4.77563556,2019.4,2019.2,7.95233]
[1742390152577,4.77563556,2019.4,2019.1,4.95247]
[1742390152892,4.77563556,2019.4,2019.0,4.95291]
[1742390152893,9.72767556,2019.4,2019.0,4.95282]
[1742390153076,0.55,2019.3,2018.9,5.697]
[1742390153275,4.95255,2019.2,2019.0,3.0]
[1742390153521,4.9527,2019.1,2018.9,5.697]
[1742390153705,9.72833556,2019.1,2018.9,5.697]
[1742390153887,4.95294,2019.0,2018.9,5.697]
[1742390154084,4.77563556,2019.1,2018.9,10.64995]
[1742390154313,5.32563556,2019.1,2019.0,4.95294]
[1742390154514,0.55,2019.3,2019.1,4.95268]
[1742390154887,9.72767556,2019.4,2019.1,4.95263]
[1742390155209,4.77563556,2019.4,2019.1,3.0]
[1742390155411,4.77563556,2019.4,2019.1,7.95261]
[1742390155614,4.77563556,2019.4,2019.1,12.90515]
[1742390155814,4.77563556,2019.4,2019.3,3.0]
[1742390156023,4.77563556,2019.7,2019.3,13.6412]
[1742390156329,10.27759556,2019.4,2019.3,5.689]
[1742390156483,4.95251,2019.2,2019.0,3.0]
[1742390156683,4.95221,2019.3,2019.1,5.691]
[1742390156906,5.50245,2019.2,2019.1,5.691]
[1742390157601,5.50245,2019.2,2018.6,22.45008515]
[1742390157602,4.95311,2019.0,2018.9,5.692]
[1742390157806,4.95255,2019.2,2018.9,5.692]
[1742390157985,0.55,2019.3,2018.9,10.64505]
[1742390158188,0.55,2019.3,2019.0,12.9056]
[1742390158384,4.95246,2019.2,2019.0,3.0]
[1742390158619,5.5027,2019.1,2018.9,5.692]
[1742390158990,0.55,2019.1,2018.9,5.692]
[1742390159192,4.95283,2019.1,2018.9,5.692]
[1742390159393,5.50247,2019.2,2018.9,5.692]
[1742390159590,0.55,2019.2,2018.9,10.64509]
[1742390159790,4.77563556,2019.3,2019.0,4.95271]
[1742390160095,4.77563556,2019.3,2019.0,4.9528]
[1742390160285,4.77563556,2019.3,2019.0,12.9056]
[1742390160489,4.77563556,2019.3,2019.1,7.9526]
[1742390160707,5.32563556,2019.3,2019.2,4.95245]
[1742390160902,4.77563556,2019.6,2019.0,7.9527]
[1742390161101,9.72799556,2019.3,2019.0,3.0]
[1742390161301,5.50297,2019.0,2018.6,22.44423262]
[1742390161518,4.95321,2018.9,2018.7,5.695]
[1742390161715,0.55,2018.9,2018.6,17.119]
[1742390161902,0.55,2018.9,2018.7,10.64657]
[1742390162234,0.55,2018.9,2018.7,5.693]
[1742390162901,5.50326,2018.9,2018.7,5.693]
[1742390163225,5.50343,2018.8,2018.7,5.693]
[1742390163613,1.3653,2018.5,2018.3,4.95456]
[1742390163808,5.5041,2018.6,2018.2,10.63384]
[1742390164008,5.5041,2018.6,2018.3,3.0]
[1742390164427,5.5045,2018.4,2018.2,5.672]
[1742390164635,0.55,2018.4,2018.2,5.672]
[1742390164933,0.55,2018.5,2018.2,5.67]
[1742390165123,5.50419,2018.5,2018.2,5.67]
[1742390165329,5.50419,2018.5,2018.3,3.0]
[1742390165330,0.55,2018.5,2018.3,3.0]
[1742390165524,4.95397,2018.6,2018.3,3.0]
[1742390165729,0.55,2018.6,2018.4,4.95435]
[1742390165902,0.55,2018.7,2018.6,4.95373]
[1742390166108,0.55,2018.7,2018.6,5.664]
[1742390166315,0.55,2018.8,2018.6,10.61784]
[1742390166515,10.51022556,2019.3,2018.9,4.95319]
[1742390166721,0.7823,2019.3,2019.1,4.95262]
[1742390166933,0.7823,2019.3,2019.0,10.61879]
[1742390167101,4.95175,2019.5,2019.1,4.9526]
[1742390167430,4.95175,2019.5,2018.1,4.955]
[1742390167431,0.55,2019.2,2018.1,4.955]
[1742390167628,4.77563556,2018.9,2018.7,3.0]
[1742390167930,0.55,2018.8,2018.7,8.671]
[1742390168225,5.50343,2018.8,2018.4,5.32714961]
[1742390168534,4.95368,2018.7,2018.4,3.0]
[1742390168736,5.5046,2018.4,2018.3,5.664]
[1742390168936,0.55,2018.3,2018.2,5.666]
[1742390169325,4.95504,2018.2,2017.8,4.95584]
[1742390169506,0.55,2018.1,2017.9,5.661]
[1742390169707,0.55,2018.4,2018.0,3.0]
[1742390169904,0.55,2018.4,2018.0,4.95524]
[1742390170151,4.95481,2018.3,2017.9,4.95549]
[1742390170301,4.77563556,2018.3,2017.8,5.654]
[1742390170512,0.55,2018.2,2017.8,5.654]
[1742390170705,5.50505,2018.2,2017.9,3.0]
[1742390170911,4.77563556,2018.3,2017.9,4.95564]
[1742390171127,4.77563556,2018.3,2018.0,3.0]
[1742390171326,4.77563556,2018.3,2017.9,7.95546]
[1742390171327,9.73035556,2018.3,2017.9,7.95546]
[1742390171543,0.55,2018.2,2017.8,5.654]
[1742390171748,4.95548,2018.0,2017.7,17.122]
[1742390171905,4.95565,2017.9,2017.8,5.645]
[1742390172106,4.95646,2017.6,2017.2,4.95717]
[1742390172340,4.77563556,2017.7,2017.3,5.645]
[1742390172541,5.71444,2017.5,2017.1,4.9576]
[1742390172842,4.95697,2017.4,2017.2,5.645]
[1742390173225,4.95697,2017.4,2017.3,3.0]
[1742390173707,0.7578,2017.5,2017.3,3.0]
[1742390173914,5.71443,2017.5,2017.2,5.645]
[1742390174110,0.7578,2017.5,2017.3,3.0]
[1742390174815,9.73250556,2017.4,2017.3,3.0]
[1742390175118,9.91495,2017.2,2016.9,17.125]
[1742390175327,4.95742,2017.2,2017.1,5.624]
[1742390175648,4.95736,2017.2,2017.1,8.624]
[1742390175938,4.95673,2017.5,2017.2,7.95725]
[1742390176139,5.764,2017.6,2017.3,4.95701]
[1742390176734,4.77563556,2017.7,2017.5,3.0]
[1742390177341,4.95591,2017.8,2017.5,3.0]
[1742390177715,4.95625,2017.7,2017.5,3.0]
[1742390178040,4.95638,2017.6,2017.5,3.0]
[1742390178919,4.95638,2017.6,2017.0,5.96527008]
[1742390178920,4.95726,2017.3,2017.0,3.0]
[1742390179110,4.95774,2017.1,2016.8,0.97099433]
[1742390179336,4.95774,2017.1,2016.9,5.609]
[1742390179643,0.8174,2017.3,2017.0,4.95777]
[1742390179842,5.77455,2017.3,2017.1,3.0]
[1742390180023,0.8174,2017.3,2016.8,4.95834]
[1742390180217,4.9579,2017.0,2016.9,8.605]
[1742390180445,4.9579,2017.0,2016.9,3.0]
[1742390180660,4.9579,2017.0,2016.5,5.32940544]
[1742390180661,4.958,2017.0,2016.7,5.611]
[1742390180842,4.95819,2016.9,2016.7,8.611]
[1742390181042,9.73303556,2017.2,2016.7,8.611]
[1742390181043,4.95773,2017.1,2016.7,13.56938]
[1742390181245,4.77563556,2017.2,2016.7,5.611]
[1742390181443,4.77563556,2017.2,2016.8,3.0]
[1742390181656,4.95807,2017.0,2016.8,3.0]
[1742390181854,4.9581,2016.9,2016.8,3.0]
[1742390182161,4.95807,2017.0,2016.8,3.0]
[1742390182364,0.8174,2017.3,2016.9,4.95792]
[1742390182666,5.77475,2017.3,2017.0,3.0]
[1742390183049,4.95738,2017.2,2016.9,3.0]
[1742390183217,4.95695,2017.4,2017.1,4.9576]
[1742390183418,0.8174,2017.5,2017.2,3.0]
[1742390183655,4.95651,2017.6,2017.2,3.0]
[1742390183838,4.95646,2017.6,2017.2,3.0]
[1742390184171,4.95646,2017.6,2017.2,12.91447]
[1742390184371,10.72991,2017.7,2017.4,3.0]
[1742390184519,5.77364,2017.7,2017.4,3.0]
[1742390184724,4.95646,2017.6,2017.4,3.0]
[1742390184942,5.77369,2017.7,2017.4,3.0]
[1742390185224,4.95566,2017.9,2017.6,3.0]
[1742390185443,4.77563556,2018.1,2017.9,4.95564]
[1742390185646,4.95419,2018.5,2018.1,3.0]
[1742390186047,4.95467,2018.3,2018.1,3.0]
[1742390186231,10.53153556,2018.7,2018.4,4.95431]
[1742390186559,15.48539556,2018.7,2018.4,8.605]
[1742390186853,4.95417,2018.5,2018.4,8.605]
[1742390187062,6.00737056,2018.5,2018.4,8.605]
[1742390187227,9.9102,2018.2,2017.9,3.0]
[1742390187552,4.95442,2018.4,2018.0,10.5563]
[1742390187742,4.95475,2018.3,2018.1,3.0]
[1742390188051,6.65573612,2018.5,2018.1,3.0]
[1742390188052,11.60992612,2018.5,2018.1,3.0]
[1742390188358,0.7759,2018.8,2018.2,4.95491]
[1742390188527,4.95368,2018.7,2018.5,3.0]
[1742390188720,4.95392,2018.6,2018.5,3.0]
[1742390188924,4.77563556,2018.7,2018.5,3.0]
[1742390189131,4.77563556,2019.0,2018.7,4.95367]
[1742390189336,4.77563556,2019.0,2018.8,8.6]
[1742390189538,4.95245,2019.2,2018.8,8.6]
[1742390189830,4.95294,2019.0,2018.9,3.0]
[1742390190131,9.72878556,2019.0,2018.8,3.0]
[1742390190362,4.95319,2018.9,2018.8,3.0]
[1742390190571,9.72863556,2019.0,2018.8,3.0]
[1742390190723,4.9527,2019.1,2018.8,3.0]
[1742390190724,4.95283,2019.1,2018.8,3.0]
[1742390190926,4.95309,2019.0,2018.8,3.0]
[1742390191157,4.95283,2019.1,2018.8,3.0]
[1742390191383,4.95258,2019.2,2018.8,3.0]
[1742390191758,9.72870556,2019.0,2018.8,3.0]
[1742390192098,4.95366,2018.8,2018.4,3.0]
[1742390192297,4.95376,2018.7,2018.4,3.0]
[1742390192600,4.95359,2018.8,2018.6,3.0]
[1742390192806,0.8332,2018.9,2018.6,7.9539]
[1742390192966,4.95273,2019.1,2018.8,3.0]
[1742390193469,0.7968,2019.2,2018.8,13.56441]
[1742390193470,5.74932,2019.2,2018.8,13.56441]
[1742390193698,0.7968,2019.2,2018.8,13.5644]
[1742390193883,9.72800556,2019.3,2018.9,4.95306]
[1742390194089,4.95257,2019.2,2018.8,13.56436]
[1742390194428,9.72795556,2019.3,2018.9,4.95307]
[1742390194715,14.68035556,2019.3,2018.9,4.95306]
[1742390194914,14.68039556,2019.3,2018.9,4.95306]
[1742390195123,5.71385,2019.5,2019.1,3.0]
[1742390195319,0.8244,2019.7,2019.5,3.0]
[1742390195622,9.72648556,2019.9,2019.5,7.9517]
[1742390195789,4.951,2019.8,2019.5,3.0]
[1742390196122,4.95177,2019.5,2019.3,3.0]
[1742390196421,9.90316,2019.6,2019.3,3.0]
[1742390196619,4.95182,2019.5,2019.3,3.0]
[1742390196784,4.95196,2019.4,2019.3,3.0]
[1742390196988,4.95196,2019.4,2019.0,1.00789355]
[1742390196989,4.9525,2019.2,2019.1,8.588]
[1742390197441,4.9525,2019.2,2019.1,5.588]
[1742390197602,4.95222,2019.3,2019.1,5.588]
[1742390198200,9.72722556,2019.6,2019.2,4.95234]
[1742390198404,10.77730812,2019.6,2019.2,3.0]
[1742390198592,4.77563556,2019.3,2018.0,4.95526]
[1742390198793,9.72795556,2019.3,2018.6,5.591]
[1742390198999,4.95259,2019.2,2018.7,4.95348]
[1742390199243,4.6033076,2019.0,2018.8,4.95341]
[1742390199540,4.6033076,2019.0,2018.9,3.0]
[1742390199855,4.95256,2019.2,2018.7,4.95348]
[1742390199856,4.95324,2018.9,2018.7,3.0]
[1742390200039,5.0985636,2019.1,2018.8,0.04953178]
[1742390200249,4.6033076,2019.3,2018.9,3.0]
[1742390200539,4.6033076,2019.3,2019.1,7.95258]
[1742390200690,9.5551876,2019.5,2019.1,4.95269]
[1742390200897,9.5551176,2019.5,2019.2,3.0]
[1742390201130,4.6033076,2019.3,2018.9,7.95312]
[1742390201331,4.6033076,2019.3,2019.0,5.581]
[1742390201561,4.6033076,2019.3,2019.2,7.95245]
[1742390201744,4.6033076,2019.5,2019.3,4.95211]
[1742390201942,4.6033076,2019.5,2019.4,8.581]
[1742390202265,4.6033076,2019.5,2019.4,3.0]
[1742390202452,4.95242,2019.3,2019.2,5.579]
[1742390202783,5.73867,2019.4,2019.0,4.95285]
[1742390202928,4.6033076,2019.3,2019.1,4.95249]
[1742390203134,4.6033076,2019.5,2019.2,4.95232]
[1742390203360,9.5550276,2019.5,2019.4,3.0]
[1742390203564,9.5550276,2019.5,2019.3,5.581]
[1742390203878,4.6033076,2019.5,2019.3,5.581]
[1742390204037,9.5551176,2019.5,2019.3,5.581]
[1742390204230,4.6033076,2019.5,2019.3,5.581]
[1742390204472,9.5550476,2019.5,2019.3,5.581]
[1742390204771,4.95155,2019.6,2019.3,5.581]
[1742390204772,4.6033076,2019.6,2019.4,7.95172]
[1742390205529,4.6033076,2019.6,2019.5,3.0]
[1742390205734,4.95058,2020.0,2019.6,3.0]
[1742390205970,4.6033076,2019.9,2019.6,7.95136]
[1742390206192,4.95062,2020.0,2019.7,10.51618]
[1742390206403,4.94962,2020.4,2019.9,4.95074]
[1742390206582,4.94984,2020.3,2019.9,9.90139]
[1742390206904,4.6033076,2020.2,2019.8,3.0]
[1742390207201,0.575252,2020.4,2019.3,17.123]
[1742390207202,4.95119,2019.8,2019.6,5.569]
[1742390207365,4.95156,2019.6,2019.3,5.569]
[1742390207554,9.5545576,2019.7,2019.3,10.5211]
[1742390207749,9.5545576,2019.7,2019.4,4.95195]
[1742390207953,0.8316,2020.0,2019.5,0.04951367]
[1742390208157,4.95109,2019.8,2019.4,7.95181]
[1742390208502,4.6033076,2020.1,2019.8,4.95083]
[1742390208810,9.5540476,2019.9,2019.8,8.575]
[1742390209100,9.5535976,2020.1,2019.9,3.0]
[1742390209399,4.6033076,2020.1,2019.8,3.0]
[1742390209553,4.94927,2020.5,2020.0,3.0]
[1742390209757,4.6033076,2020.4,2020.1,4.9502]
[1742390209971,9.5529176,2020.4,2020.1,4.95022]
[1742390210214,4.94927,2020.5,2020.0,7.95049]
[1742390210420,0.005,2020.6,2020.5,7.94926]
[1742390210586,0.005,2020.6,2020.5,13.54326]
[1742390211214,0.005,2021.0,2020.9,4.94829]
[1742390211416,0.005,2021.0,2020.9,13.54329]
[1742390211573,0.005,2021.0,2020.9,14.09329]
[1742390211773,1e-05,2021.0,2020.9,19.07650271]
[1742390212215,1e-05,2021.0,2020.9,14.47319511]
[1742390212582,0.7567,2022.2,2020.9,14.47319511]
[1742390212583,4.94567,2022.0,2021.0,3.55]
[1742390212778,4.6033076,2021.5,2021.3,3.0]
[1742390213181,0.005,2021.8,2021.3,7.94719]
[1742390213404,0.005,2021.8,2021.4,4.94705]
[1742390213607,0.005,2021.8,2021.7,3.0]
[1742390213792,4.95123,2021.8,2021.5,5.616]
[1742390213975,0.005,2021.8,2021.6,3.0]
[1742390214174,0.005,2021.8,2021.7,4.94633]
[1742390214570,0.005,2021.8,2021.6,7.94645]
[1742390214769,0.005,2021.8,2021.7,4.94633]
[1742390215781,0.005,2021.8,2021.6,3.0]
[1742390215999,0.005,2021.8,2021.7,5.609]
[1742390216612,4.94661,2021.6,2021.3,5.61]
[1742390216982,4.94685,2021.5,2021.3,5.61]
[1742390217188,4.94732,2021.3,2021.0,5.607]
[1742390217382,4.94802,2021.1,2020.7,22.717]
[1742390217591,4.94841,2020.9,2020.7,5.608]
[1742390217892,9.71681134,2021.0,2020.7,5.608]
[1742390218204,4.77375134,2021.8,2020.7,5.608]
[1742390218405,5.76918,2021.4,2021.0,3.0]
[1742390218604,4.94766,2021.2,2020.7,11.57121251]
[1742390218798,4.94766,2021.2,2020.7,16.51988251]
[1742390218998,4.94817,2021.0,2020.8,5.668]
[1742390219382,4.9478,2021.1,2020.8,5.668]
[1742390219580,9.71645134,2021.2,2020.8,5.668]
[1742390219581,4.94806,2021.0,2020.8,5.668]
[1742390219774,4.94773,2021.2,2020.8,5.668]
[1742390220106,0.822,2021.4,2020.8,5.668]
[1742390220311,4.94829,2020.9,2020.8,5.668]
[1742390220716,4.94876,2020.8,2020.0,0.37879125]
[1742390220881,4.94991,2020.3,2019.8,4.95095]
[1742390221219,4.95093,2019.9,2019.5,5.664]
[1742390221422,4.76875134,2020.0,2019.2,17.108]
[1742390221604,4.95244,2019.3,2019.1,0.37020095]
[1742390221913,5.55225134,2019.7,2018.9,4.95306]
[1742390221914,4.95216,2019.4,2018.9,4.95306]
[1742390222224,4.95173,2019.5,2019.0,10.61694]
[1742390222378,4.95202,2019.4,2019.0,5.664]
[1742390222578,4.95202,2019.4,2018.6,4.95391]
[1742390222579,4.95147,2019.6,2018.6,4.95372]
[1742390222812,4.95251,2019.2,2018.7,10.61253]
[1742390223012,4.95251,2019.2,2018.7,4.95353]
[1742390223215,1.54547413,2019.6,2018.8,5.656]
[1742390223216,4.953,2019.0,2018.8,5.656]
[1742390223388,4.9535,2018.8,2018.5,17.108]
[1742390223712,4.95294,2019.0,2018.1,0.97857507]
[1742390223916,4.95444,2018.4,2018.1,5.658]
[1742390224113,4.95429,2018.5,2018.1,5.658]
[1742390224302,4.95478,2018.3,2018.1,5.658]
[1742390224682,0.7723,2018.7,2018.1,5.658]
[1742390225015,6.49711413,2019.6,2018.1,5.658]
[1742390225016,1.64547413,2019.6,2018.2,4.95491]
[1742390225214,0.7965,2020.0,2019.1,4.95259]
[1742390225215,0.47687513,2019.9,2019.1,4.95259]
[1742390225400,0.47687513,2019.9,2019.4,4.95176]
[1742390225718,5.42772513,2019.9,2019.4,5.695]
[1742390225890,0.7965,2020.0,2019.5,4.95172]
[1742390226091,4.95165,2019.6,2019.4,5.691]
[1742390226318,4.95172,2019.5,2019.1,5.7]
[1742390226519,4.95202,2019.4,2019.1,5.7]
[1742390226815,4.95245,2019.2,2018.8,5.698]
[1742390227018,6.737014,2019.4,2018.8,5.698]
[1742390227188,11.688994,2019.4,2018.8,10.65125]
[1742390227383,0.7945,2019.4,2019.1,4.95245]
[1742390227588,5.74659,2019.4,2018.9,3.0]
[1742390227790,4.95234,2019.3,2018.9,3.0]
[1742390227985,0.7945,2019.4,2018.9,3.0]
[1742390228223,0.8282,2019.7,2019.1,4.95256]
[1742390228423,5.32663344,2020.9,2019.1,4.95256]
[1742390228424,0.7605,2020.0,2019.2,0.04951101]
[1742390228718,4.9505,2020.0,2019.4,7.95176]
[1742390228922,0.7605,2020.1,2019.8,4.95095]
[1742390229220,0.8331,2020.4,2019.9,7.95054]
[1742390229515,0.8331,2020.4,2020.2,4.94978]
[1742390229721,5.78188,2020.7,2020.3,5.713]
[1742390229917,1.411288,2020.7,2020.2,5.72]
[1742390230235,1.411288,2020.7,2019.5,22.0677]
[1742390230236,1.411288,2020.7,2019.5,17.48388209]
[1742390230388,9.89844,2020.6,2019.6,8.72]
[1742390230589,4.95001,2020.2,2019.8,3.0]
[1742390230891,4.95001,2020.2,2019.7,3.0]
[1742390231208,4.94917,2020.6,2020.0,4.95038]
[1742390231418,0.8331,2020.7,2020.0,5.72]
[1742390231622,4.94965,2020.4,2020.0,5.72]
[1742390231914,4.94944,2020.5,2020.0,5.72]
[1742390231915,4.94981,2020.3,2020.0,5.72]
[1742390232118,5.50931513,2020.6,2020.0,5.72]
[1742390232291,4.94913,2020.6,2020.0,10.67027]
[1742390232488,0.8331,2020.7,2020.0,5.72]
[1742390232688,4.9492,2020.6,2020.0,10.67046]
[1742390232890,4.9492,2020.6,2020.1,4.95022]
[1742390233089,4.94939,2020.5,2020.0,5.72]
[1742390233289,4.94939,2020.5,2020.0,10.67037]
[1742390233485,0.8331,2020.7,2020.2,4.94984]